[Event "*** SCC Grand Prix: Titled Tuesday Blitz"]
[Site "Chess.com"]
[Date "2020.08.11"]
[Round "1"]
[White "PIwan"]
[Black "RaunakSadhwani2005"]
[Result "1-0"]
[WhiteElo "2459"]
[BlackElo "2949"]
[TimeControl "180+1"]
[EndTime "10:08:44 PDT"]
[Termination "PIwan won by resignation"]

1. c4 {[%clk 0:02:59.8]} 1... Nf6 {[%clk 0:02:52.5]} 2. Nc3 {[%clk 0:02:59.1]}
2... g6 {[%clk 0:02:49.8]} 3. e4 {[%clk 0:02:58.8]} 3... d6 {[%clk 0:02:49.5]}
4. d4 {[%clk 0:02:59.3]} 4... Bg7 {[%clk 0:02:50]} 5. f3 {[%clk 0:02:59.9]} 5...
O-O {[%clk 0:02:47.6]} 6. Bg5 {[%clk 0:03:00.3]} 6... c5 {[%clk 0:02:43.1]} 7.
d5 {[%clk 0:03:00.4]} 7... e6 {[%clk 0:02:39.7]} 8. Qd2 {[%clk 0:03:00.4]} 8...
exd5 {[%clk 0:02:39.2]} 9. cxd5 {[%clk 0:03:01.3]} 9... a6 {[%clk 0:02:37.4]}
10. a4 {[%clk 0:03:00.9]} 10... Re8 {[%clk 0:02:37.3]} 11. Nge2 {[%clk
0:03:01.1]} 11... Nbd7 {[%clk 0:02:35]} 12. Ng3 {[%clk 0:03:00.6]} 12... Qb6
{[%clk 0:02:34.1]} 13. a5 {[%clk 0:02:54.6]} 13... Qc7 {[%clk 0:02:25.8]} 14.
Be2 {[%clk 0:02:53.9]} 14... h5 {[%clk 0:02:19.1]} 15. O-O {[%clk 0:02:51.5]}
15... b5 {[%clk 0:02:18.1]} 16. axb6 {[%clk 0:02:45]} 16... Qxb6 {[%clk
0:02:16.5]} 17. Rfe1 {[%clk 0:02:34.2]} 17... Nh7 {[%clk 0:02:09]} 18. Be3
{[%clk 0:02:23.9]} 18... h4 {[%clk 0:02:08.4]} 19. Nf1 {[%clk 0:02:23.6]} 19...
h3 {[%clk 0:02:05.3]} 20. g4 {[%clk 0:02:07.8]} 20... Ne5 {[%clk 0:02:03.3]} 21.
Ng3 {[%clk 0:02:04.2]} 21... a5 {[%clk 0:01:58.9]} 22. Kh1 {[%clk 0:01:57.7]}
22... Ba6 {[%clk 0:01:53.3]} 23. f4 {[%clk 0:01:55.3]} 23... Nc4 {[%clk
0:01:53.3]} 24. Bxc4 {[%clk 0:01:55.4]} 24... Bxc4 {[%clk 0:01:54.2]} 25. e5
{[%clk 0:01:50.7]} 25... dxe5 {[%clk 0:01:46.8]} 26. f5 {[%clk 0:01:50.9]} 26...
Rad8 {[%clk 0:01:28.1]} 27. Nge4 {[%clk 0:01:48.9]} 27... Nf6 {[%clk 0:01:27.9]}
28. Bxc5 {[%clk 0:01:43.3]} 28... Nxe4 {[%clk 0:01:20]} 29. Nxe4 {[%clk
0:01:44.2]} 29... Bxd5 {[%clk 0:00:59.9]} 30. Qxd5 {[%clk 0:01:40.1]} 30... Qxb2
{[%clk 0:00:56.8]} 31. Qa2 {[%clk 0:01:37]} 31... Qxa2 {[%clk 0:00:28]} 32. Rxa2
{[%clk 0:01:37.9]} 32... Rd5 {[%clk 0:00:27.7]} 33. f6 {[%clk 0:01:22.5]} 33...
Bh6 {[%clk 0:00:26]} 34. g5 {[%clk 0:01:20.3]} 34... Bf8 {[%clk 0:00:26]} 35.
Rxa5 {[%clk 0:00:55.2]} 35... Red8 {[%clk 0:00:15.6]} 36. Bb6 {[%clk 0:00:46.1]}
36... Rd1 {[%clk 0:00:15.5]} 37. Ra1 {[%clk 0:00:40.7]} 37... Rxa1 {[%clk
0:00:13]} 38. Rxa1 {[%clk 0:00:41.6]} 38... Rc8 {[%clk 0:00:11.5]} 39. Bf2
{[%clk 0:00:30.5]} 39... Rc4 {[%clk 0:00:10.2]} 40. Nd2 {[%clk 0:00:16.7]} 40...
Rc2 {[%clk 0:00:10.4]} 41. Be3 {[%clk 0:00:16.3]} 41... Bb4 {[%clk 0:00:10.3]}
42. Nf3 {[%clk 0:00:14.5]} 42... Rc3 {[%clk 0:00:10.3]} 43. Re1 {[%clk
0:00:10.9]} 43... Rd3 {[%clk 0:00:09.4]} 44. Re2 {[%clk 0:00:09.5]} 44... Rd1+
{[%clk 0:00:08.9]} 45. Ng1 {[%clk 0:00:09]} 45... Kf8 {[%clk 0:00:05.6]} 46. Bf2
{[%clk 0:00:09]} 46... Bd6 {[%clk 0:00:05.9]} 47. Re3 {[%clk 0:00:08.6]} 47...
Ke8 {[%clk 0:00:06.3]} 48. Rxh3 {[%clk 0:00:08.5]} 48... Kd7 {[%clk 0:00:07.2]}
49. Re3 {[%clk 0:00:07.8]} 49... Ke6 {[%clk 0:00:07.5]} 50. Kg2 {[%clk
0:00:07.8]} 50... Kf5 {[%clk 0:00:07.4]} 51. h4 {[%clk 0:00:07.8]} 51... e4
{[%clk 0:00:07.6]} 52. Ne2 {[%clk 0:00:07.7]} 52... Rd2 {[%clk 0:00:03.6]} 53.
Ng3+ {[%clk 0:00:07.5]} 53... Kg4 {[%clk 0:00:04]} 54. Rxe4+ {[%clk 0:00:07.2]}
54... Bf4 {[%clk 0:00:04.9]} 55. Ra4 {[%clk 0:00:04.5]} 55... Rc2 {[%clk
0:00:04.7]} 56. Nf1 {[%clk 0:00:04]} 56... Rb2 {[%clk 0:00:02.9]} 57. Ne3+
{[%clk 0:00:03.6]} 57... Kh5 {[%clk 0:00:01.4]} 58. Rxf4 {[%clk 0:00:04]} 58...
Re2 {[%clk 0:00:01.8]} 59. Kg3 {[%clk 0:00:02.2]} 59... Rb2 {[%clk 0:00:01.4]}
60. Ng2 {[%clk 0:00:02]} 60... Rb4 {[%clk 0:00:02]} 61. Rf3 {[%clk 0:00:02.3]}
61... Rg4+ {[%clk 0:00:02.2]} 62. Kh2 {[%clk 0:00:01.9]} 62... Rxg2+ {[%clk
0:00:02.6]} 63. Kxg2 {[%clk 0:00:02.8]} 63... Kg4 {[%clk 0:00:03]} 64. Rg3+
{[%clk 0:00:03.7]} 64... Kh5 {[%clk 0:00:03.8]} 65. Re3 {[%clk 0:00:04.1]} 65...
Kg4 {[%clk 0:00:04.7]} 66. Re7 {[%clk 0:00:04.3]} 66... Kh5 {[%clk 0:00:05.6]}
67. Rxf7 {[%clk 0:00:04.8]} 67... Kg4 {[%clk 0:00:06.5]} 68. Rg7 {[%clk
0:00:05.7]} 68... Kf5 {[%clk 0:00:07.4]} 69. f7 {[%clk 0:00:06.6]} 69... Ke6
{[%clk 0:00:08.2]} 70. f8=Q {[%clk 0:00:07.5]} 1-0

[Event "*** SCC Grand Prix: Titled Tuesday Blitz"]
[Site "Chess.com"]
[Date "2020.08.11"]
[Round "1"]
[White "tvjosue"]
[Black "NotFischer"]
[Result "1-0"]
[WhiteElo "2503"]
[BlackElo "2097"]
[TimeControl "180+1"]
[EndTime "10:08:52 PDT"]
[Termination "tvjosue won by checkmate"]

1. Nf3 {[%clk 0:02:53.2]} 1... d5 {[%clk 0:02:59.6]} 2. c4 {[%clk 0:02:52.6]}
2... d4 {[%clk 0:02:55.9]} 3. e3 {[%clk 0:02:45]} 3... c5 {[%clk 0:02:54.2]} 4.
exd4 {[%clk 0:02:41.4]} 4... cxd4 {[%clk 0:02:53.6]} 5. g3 {[%clk 0:02:38.9]}
5... Nc6 {[%clk 0:02:53.6]} 6. Bg2 {[%clk 0:02:34.6]} 6... Nf6 {[%clk
0:02:53.7]} 7. O-O {[%clk 0:02:28.8]} 7... g6 {[%clk 0:02:36.8]} 8. d3 {[%clk
0:02:25]} 8... Bg7 {[%clk 0:02:36.7]} 9. Na3 {[%clk 0:02:24.6]} 9... O-O {[%clk
0:02:34.9]} 10. Nc2 {[%clk 0:02:22.6]} 10... Bg4 {[%clk 0:02:34.1]} 11. h3
{[%clk 0:02:20]} 11... Bxf3 {[%clk 0:02:33.5]} 12. Qxf3 {[%clk 0:02:20.8]} 12...
Qd6 {[%clk 0:02:12.9]} 13. Re1 {[%clk 0:02:14.1]} 13... Rfe8 {[%clk 0:02:02.1]}
14. Bd2 {[%clk 0:02:05.6]} 14... a5 {[%clk 0:01:52.8]} 15. Na3 {[%clk
0:02:03.1]} 15... Nb4 {[%clk 0:01:37.2]} 16. Nb5 {[%clk 0:01:59]} 16... Qb6
{[%clk 0:01:32.7]} 17. Bxb4 {[%clk 0:01:55.4]} 17... axb4 {[%clk 0:01:31.4]} 18.
Qxb7 {[%clk 0:01:55.2]} 18... Qxb7 {[%clk 0:01:25.5]} 19. Bxb7 {[%clk
0:01:54.3]} 19... Rab8 {[%clk 0:01:17.3]} 20. Bc6 {[%clk 0:01:49.2]} 20... Rec8
{[%clk 0:01:17]} 21. Bf3 {[%clk 0:01:46.4]} 21... e6 {[%clk 0:01:11.2]} 22. Nxd4
{[%clk 0:01:40.7]} 22... Nd7 {[%clk 0:01:05.6]} 23. Nc6 {[%clk 0:01:38.4]} 23...
Bxb2 {[%clk 0:01:04.4]} 24. Nxb8 {[%clk 0:01:37.6]} 24... Nxb8 {[%clk
0:00:59.2]} 25. Rab1 {[%clk 0:01:34.8]} 25... Bc3 {[%clk 0:00:59.2]} 26. Red1
{[%clk 0:00:07.3]} 26... Rd8 {[%clk 0:00:58.5]} 27. Bb7 {[%clk 0:00:05.3]} 27...
Nd7 {[%clk 0:00:57.8]} 28. Bc6 {[%clk 0:00:04.1]} 28... Nc5 {[%clk 0:00:55.9]}
29. Be4 {[%clk 0:00:05]} 29... f5 {[%clk 0:00:53.4]} 30. Bf3 {[%clk 0:00:05.9]}
30... Kf7 {[%clk 0:00:38.1]} 31. Be2 {[%clk 0:00:06.8]} 31... Ra8 {[%clk
0:00:23.4]} 32. d4 {[%clk 0:00:06.6]} 32... Ne4 {[%clk 0:00:16.1]} 33. Bf3
{[%clk 0:00:07.5]} 33... Rxa2 {[%clk 0:00:13.9]} 34. Bxe4 {[%clk 0:00:08.4]}
34... fxe4 {[%clk 0:00:13.8]} 35. d5 {[%clk 0:00:09.3]} 35... exd5 {[%clk
0:00:12.7]} 36. cxd5 {[%clk 0:00:10.2]} 36... Be5 {[%clk 0:00:07.1]} 37. d6
{[%clk 0:00:10.1]} 37... e3 {[%clk 0:00:05.4]} 38. fxe3 {[%clk 0:00:08.9]} 38...
Bxg3 {[%clk 0:00:05.2]} 39. d7 {[%clk 0:00:08.5]} 39... Bf2+ {[%clk 0:00:03.5]}
40. Kh1 {[%clk 0:00:07.6]} 40... Bh4 {[%clk 0:00:03.6]} 41. d8=Q {[%clk
0:00:08]} 41... Bxd8 {[%clk 0:00:03.5]} 42. Rxd8 {[%clk 0:00:06.7]} 42... Ra3
{[%clk 0:00:04.1]} 43. Rdd1 {[%clk 0:00:05.6]} 43... Kf6 {[%clk 0:00:04.4]} 44.
Rf1+ {[%clk 0:00:06.1]} 44... Kg5 {[%clk 0:00:05.3]} 45. Kg2 {[%clk 0:00:05.6]}
45... Rxe3 {[%clk 0:00:05.8]} 46. Rf3 {[%clk 0:00:05.7]} 46... Rc3 {[%clk
0:00:05.8]} 47. Rf2 {[%clk 0:00:06.6]} 47... Rc4 {[%clk 0:00:05.8]} 48. Rb3
{[%clk 0:00:06.5]} 48... Rd4 {[%clk 0:00:05.8]} 49. Rg3+ {[%clk 0:00:07.4]}
49... Kh5 {[%clk 0:00:06]} 50. Rg4 {[%clk 0:00:07.8]} 50... Rd3 {[%clk
0:00:05.6]} 51. Rg3 {[%clk 0:00:06.1]} 51... Rd4 {[%clk 0:00:05.6]} 52. Rgf3
{[%clk 0:00:07]} 52... Rc4 {[%clk 0:00:05.9]} 53. Rf4 {[%clk 0:00:07.1]} 53...
Rc3 {[%clk 0:00:06.4]} 54. Rxb4 {[%clk 0:00:06.3]} 54... Rc5 {[%clk 0:00:06.6]}
55. Rg4 {[%clk 0:00:06.2]} 55... Rd5 {[%clk 0:00:06.8]} 56. Rg3 {[%clk 0:00:07]}
56... h6 {[%clk 0:00:07.1]} 57. Rgf3 {[%clk 0:00:07.6]} 57... g5 {[%clk
0:00:07.3]} 58. Rg3 {[%clk 0:00:06.5]} 58... Rd4 {[%clk 0:00:07.6]} 59. Rg4
{[%clk 0:00:07.3]} 59... Rd5 {[%clk 0:00:07.2]} 60. Rg3 {[%clk 0:00:06.6]} 60...
Re5 {[%clk 0:00:07.6]} 61. Rgf3 {[%clk 0:00:06.1]} 61... Rd5 {[%clk 0:00:08]}
62. Rf6 {[%clk 0:00:07]} 62... Rd4 {[%clk 0:00:08.4]} 63. h4 {[%clk 0:00:07.5]}
63... Rxh4 {[%clk 0:00:07.8]} 64. R6f3 {[%clk 0:00:08.3]} 64... Rg4+ {[%clk
0:00:08.2]} 65. Rg3 {[%clk 0:00:09.2]} 65... Re4 {[%clk 0:00:08.3]} 66. Rf6
{[%clk 0:00:06.1]} 66... Re2+ {[%clk 0:00:07.3]} 67. Kf3 {[%clk 0:00:05.2]}
67... Rb2 {[%clk 0:00:07.8]} 68. Rh3# {[%clk 0:00:04.8]} 1-0

[Event "*** SCC Grand Prix: Titled Tuesday Blitz"]
[Site "Chess.com"]
[Date "2020.08.11"]
[Round "1"]
[White "GlennTipton"]
[Black "LiemLe"]
[Result "1-0"]
[WhiteElo "2458"]
[BlackElo "2956"]
[TimeControl "180+1"]
[EndTime "10:09:18 PDT"]
[Termination "GlennTipton won by checkmate"]

1. d4 {[%clk 0:02:59.3]} 1... Nf6 {[%clk 0:02:58.8]} 2. Nf3 {[%clk 0:02:56.6]}
2... d5 {[%clk 0:02:57.9]} 3. Bf4 {[%clk 0:02:54.8]} 3... c5 {[%clk 0:02:57.1]}
4. e3 {[%clk 0:02:54.4]} 4... Nc6 {[%clk 0:02:56.5]} 5. c3 {[%clk 0:02:54.6]}
5... Qb6 {[%clk 0:02:50.4]} 6. Qc1 {[%clk 0:02:54.1]} 6... Bf5 {[%clk
0:02:44.6]} 7. Nbd2 {[%clk 0:02:51.9]} 7... e6 {[%clk 0:02:44]} 8. h3 {[%clk
0:02:50.9]} 8... Rc8 {[%clk 0:02:41.9]} 9. Be2 {[%clk 0:02:49.8]} 9... cxd4
{[%clk 0:02:37.3]} 10. exd4 {[%clk 0:02:48.4]} 10... Nb4 {[%clk 0:02:34.7]} 11.
O-O {[%clk 0:02:44.4]} 11... Be7 {[%clk 0:02:18]} 12. Ne5 {[%clk 0:02:38.6]}
12... Nc2 {[%clk 0:02:15.9]} 13. g4 {[%clk 0:02:31.7]} 13... Nxd4 {[%clk
0:01:47.6]} 14. Bd1 {[%clk 0:02:27.8]} 14... h5 {[%clk 0:01:03.5]} 15. gxf5
{[%clk 0:02:16.1]} 15... Nxf5 {[%clk 0:01:04.4]} 16. Ba4+ {[%clk 0:02:09]} 16...
Kf8 {[%clk 0:01:04.2]} 17. Bc2 {[%clk 0:01:51.6]} 17... g5 {[%clk 0:00:59.8]}
18. Bh2 {[%clk 0:01:48.9]} 18... Nh4 {[%clk 0:00:56.9]} 19. Ndf3 {[%clk
0:01:41.6]} 19... Nxf3+ {[%clk 0:00:55.5]} 20. Nxf3 {[%clk 0:01:42.5]} 20... g4
{[%clk 0:00:54.9]} 21. Ne5 {[%clk 0:01:38.2]} 21... Bd6 {[%clk 0:00:44.3]} 22.
Qf4 {[%clk 0:01:33.8]} 22... Ke7 {[%clk 0:00:41.6]} 23. Qxf6+ {[%clk 0:01:32.6]}
23... Kxf6 {[%clk 0:00:42.5]} 24. Nd7+ {[%clk 0:01:33.1]} 24... Ke7 {[%clk
0:00:39.9]} 25. Nxb6 {[%clk 0:01:34]} 25... axb6 {[%clk 0:00:40.3]} 26. Bxd6+
{[%clk 0:01:26.9]} 26... Kxd6 {[%clk 0:00:41.2]} 27. Bb3 {[%clk 0:01:24.2]}
27... f5 {[%clk 0:00:37.2]} 28. f4 {[%clk 0:01:23.2]} 28... h4 {[%clk
0:00:21.9]} 29. hxg4 {[%clk 0:01:17.7]} 29... fxg4 {[%clk 0:00:22.8]} 30. f5
{[%clk 0:01:18.2]} 30... e5 {[%clk 0:00:21.7]} 31. Rad1 {[%clk 0:01:15.2]} 31...
Rc5 {[%clk 0:00:21.3]} 32. Rd2 {[%clk 0:01:09.6]} 32... Rf8 {[%clk 0:00:21.3]}
33. Rfd1 {[%clk 0:01:06.9]} 33... Rxf5 {[%clk 0:00:20.9]} 34. Bxd5 {[%clk
0:00:57.9]} 34... Ke7 {[%clk 0:00:21.1]} 35. Bxb7 {[%clk 0:00:51.2]} 35... Rc7
{[%clk 0:00:21.2]} 36. Be4 {[%clk 0:00:47.5]} 36... Rf4 {[%clk 0:00:21.4]} 37.
Re2 {[%clk 0:00:47.4]} 37... h3 {[%clk 0:00:18.6]} 38. Kh2 {[%clk 0:00:45]}
38... Kf6 {[%clk 0:00:18.1]} 39. Rd6+ {[%clk 0:00:38.7]} 39... Kg5 {[%clk
0:00:18.3]} 40. Rg6+ {[%clk 0:00:32.3]} 40... Kh5 {[%clk 0:00:18.2]} 41. Bb1
{[%clk 0:00:29.8]} 41... e4 {[%clk 0:00:13.6]} 42. Rxb6 {[%clk 0:00:24.8]} 42...
Rcf7 {[%clk 0:00:12.6]} 43. Bxe4 {[%clk 0:00:22.7]} 43... Kg5 {[%clk 0:00:09.3]}
44. Kg3 {[%clk 0:00:20.3]} 44... Rxe4 {[%clk 0:00:06.9]} 45. Rxe4 {[%clk
0:00:16.7]} 45... Rf3+ {[%clk 0:00:07.3]} 46. Kh2 {[%clk 0:00:17.2]} 46... Rf2+
{[%clk 0:00:08.2]} 47. Kg1 {[%clk 0:00:17.4]} 47... g3 {[%clk 0:00:08.2]} 48.
Rb5+ {[%clk 0:00:15.7]} 48... Kf6 {[%clk 0:00:07]} 49. Rh4 {[%clk 0:00:07.7]}
49... h2+ {[%clk 0:00:07.2]} 50. Kh1 {[%clk 0:00:07.9]} 50... Rf1+ {[%clk
0:00:06.6]} 51. Kg2 {[%clk 0:00:07.8]} 51... Rg1+ {[%clk 0:00:07.5]} 52. Kf3
{[%clk 0:00:08.2]} 52... h1=Q+ {[%clk 0:00:07.7]} 53. Rxh1 {[%clk 0:00:08.5]}
53... Rxh1 {[%clk 0:00:08.6]} 54. Kxg3 {[%clk 0:00:09]} 54... Ke6 {[%clk
0:00:09.5]} 55. a4 {[%clk 0:00:08.6]} 55... Kd6 {[%clk 0:00:09.8]} 56. c4 {[%clk
0:00:08.5]} 56... Kc6 {[%clk 0:00:09]} 57. b3 {[%clk 0:00:08.8]} 57... Rf1
{[%clk 0:00:08.1]} 58. Kg2 {[%clk 0:00:08.9]} 58... Rf7 {[%clk 0:00:07.5]} 59.
a5 {[%clk 0:00:09]} 59... Rf8 {[%clk 0:00:07.7]} 60. b4 {[%clk 0:00:08.4]} 60...
Rf4 {[%clk 0:00:07.4]} 61. Rb6+ {[%clk 0:00:08.6]} 61... Kc7 {[%clk 0:00:07.9]}
62. c5 {[%clk 0:00:09.5]} 62... Rf8 {[%clk 0:00:07.2]} 63. a6 {[%clk 0:00:09.7]}
63... Rf5 {[%clk 0:00:07.3]} 64. Kg3 {[%clk 0:00:09.4]} 64... Rf1 {[%clk
0:00:06.7]} 65. Kg4 {[%clk 0:00:09.4]} 65... Rg1+ {[%clk 0:00:07.2]} 66. Kf4
{[%clk 0:00:09.6]} 66... Re1 {[%clk 0:00:08.1]} 67. b5 {[%clk 0:00:07.9]} 67...
Rc1 {[%clk 0:00:08.5]} 68. Rb7+ {[%clk 0:00:07.9]} 68... Kc8 {[%clk 0:00:09]}
69. c6 {[%clk 0:00:08.8]} 69... Rc5 {[%clk 0:00:09.2]} 70. a7 {[%clk 0:00:08.5]}
70... Rc4+ {[%clk 0:00:10.1]} 71. Ke5 {[%clk 0:00:08.6]} 71... Ra4 {[%clk
0:00:11]} 72. Rb8+ {[%clk 0:00:08.4]} 72... Kc7 {[%clk 0:00:11.4]} 73. a8=Q
{[%clk 0:00:09.3]} 73... Rxa8 {[%clk 0:00:11.8]} 74. Rxa8 {[%clk 0:00:09.6]}
74... Kb6 {[%clk 0:00:12.7]} 75. Rb8+ {[%clk 0:00:10]} 75... Kc5 {[%clk
0:00:12.4]} 76. Rb7 {[%clk 0:00:10.5]} 76... Kb4 {[%clk 0:00:13.3]} 77. c7
{[%clk 0:00:11]} 77... Ka4 {[%clk 0:00:14]} 78. c8=Q {[%clk 0:00:11.2]} 78...
Kb4 {[%clk 0:00:14.9]} 79. Qc6 {[%clk 0:00:11.5]} 79... Kb3 {[%clk 0:00:15.8]}
80. Rd7 {[%clk 0:00:11.6]} 80... Kb2 {[%clk 0:00:16.7]} 81. Rd5 {[%clk
0:00:12.5]} 81... Kb3 {[%clk 0:00:16.9]} 82. b6 {[%clk 0:00:13.4]} 82... Ka3
{[%clk 0:00:17.4]} 83. Rb5 {[%clk 0:00:14.3]} 83... Ka4 {[%clk 0:00:18.2]} 84.
b7 {[%clk 0:00:15.2]} 84... Ka3 {[%clk 0:00:18.3]} 85. Qa6# {[%clk 0:00:16.1]}
1-0

[Event "*** SCC Grand Prix: Titled Tuesday Blitz"]
[Site "Chess.com"]
[Date "2020.08.11"]
[Round "1"]
[White "ViktoriyaTarasova"]
[Black "Koksik_13"]
[Result "0-1"]
[WhiteElo "2266"]
[BlackElo "2613"]
[TimeControl "180+1"]
[EndTime "10:09:29 PDT"]
[Termination "Koksik_13 won on time"]

1. d4 {[%clk 0:03:00.7]} 1... e6 {[%clk 0:02:45.4]} 2. c4 {[%clk 0:03:00]} 2...
d5 {[%clk 0:02:45.1]} 3. Nc3 {[%clk 0:02:59.6]} 3... a6 {[%clk 0:02:45.6]} 4.
cxd5 {[%clk 0:02:59]} 4... exd5 {[%clk 0:02:46.5]} 5. Bf4 {[%clk 0:02:58.8]}
5... c6 {[%clk 0:02:46.4]} 6. e3 {[%clk 0:02:58.3]} 6... Bd6 {[%clk 0:02:46.4]}
7. Bxd6 {[%clk 0:02:54.6]} 7... Qxd6 {[%clk 0:02:47.3]} 8. Bd3 {[%clk
0:02:55.2]} 8... Nf6 {[%clk 0:02:46.9]} 9. Nge2 {[%clk 0:02:53.9]} 9... Nbd7
{[%clk 0:02:46.9]} 10. h3 {[%clk 0:02:51.6]} 10... O-O {[%clk 0:02:47.2]} 11.
O-O {[%clk 0:02:51]} 11... Re8 {[%clk 0:02:47.7]} 12. Ng3 {[%clk 0:02:50.9]}
12... Nf8 {[%clk 0:02:47.5]} 13. Qc2 {[%clk 0:02:50.3]} 13... g6 {[%clk
0:02:45.9]} 14. Rab1 {[%clk 0:02:40.4]} 14... h5 {[%clk 0:02:42.3]} 15. b4
{[%clk 0:02:37.7]} 15... h4 {[%clk 0:02:42.1]} 16. Nge2 {[%clk 0:02:37.6]} 16...
Ne6 {[%clk 0:02:13.8]} 17. a4 {[%clk 0:02:22.7]} 17... Ng5 {[%clk 0:02:13.3]}
18. Nf4 {[%clk 0:02:17.3]} 18... b5 {[%clk 0:02:05.8]} 19. Bxg6 {[%clk
0:02:12.5]} 19... Kh8 {[%clk 0:01:51.6]} 20. Bf5 {[%clk 0:02:01.1]} 20... Rg8
{[%clk 0:01:50]} 21. Kh1 {[%clk 0:01:57.8]} 21... Be6 {[%clk 0:01:42.6]} 22.
Bxe6 {[%clk 0:01:39.3]} 22... fxe6 {[%clk 0:01:41.8]} 23. Ng6+ {[%clk
0:01:31.3]} 23... Kg7 {[%clk 0:01:39.6]} 24. Ne5 {[%clk 0:01:28.9]} 24... Nge4
{[%clk 0:01:02.5]} 25. Nxe4 {[%clk 0:01:27.4]} 25... Nxe4 {[%clk 0:01:02.5]} 26.
Qe2 {[%clk 0:01:02.7]} 26... Nf6 {[%clk 0:00:42.2]} 27. Rfc1 {[%clk 0:00:58.9]}
27... Rac8 {[%clk 0:00:40.8]} 28. axb5 {[%clk 0:00:52.7]} 28... cxb5 {[%clk
0:00:34.8]} 29. Rc5 {[%clk 0:00:51.5]} 29... Rxc5 {[%clk 0:00:27.9]} 30. bxc5
{[%clk 0:00:48.7]} 30... Qf8 {[%clk 0:00:17.8]} 31. Ra1 {[%clk 0:00:41.6]} 31...
Ne4 {[%clk 0:00:15]} 32. Kg1 {[%clk 0:00:38.7]} 32... Kh6 {[%clk 0:00:09.1]} 33.
Ng4+ {[%clk 0:00:33.5]} 33... Kg5 {[%clk 0:00:07.7]} 34. Rxa6 {[%clk 0:00:30.8]}
34... Qf5 {[%clk 0:00:07.9]} 35. f4+ {[%clk 0:00:25.6]} 35... Kg6 {[%clk
0:00:06.3]} 36. Ne5+ {[%clk 0:00:24]} 36... Kh6 {[%clk 0:00:04.9]} 37. Ng4+
{[%clk 0:00:20.3]} 37... Kg6 {[%clk 0:00:05.1]} 38. Qe1 {[%clk 0:00:19.2]} 38...
Ng3 {[%clk 0:00:04.7]} 39. Nf2 {[%clk 0:00:15.8]} 39... Kh6 {[%clk 0:00:04.4]}
40. Ng4+ {[%clk 0:00:15.6]} 40... Kg6 {[%clk 0:00:04.4]} 41. c6 {[%clk
0:00:13.8]} 41... b4 {[%clk 0:00:03.7]} 42. c7 {[%clk 0:00:13.8]} 42... b3
{[%clk 0:00:03.8]} 43. Rc6 {[%clk 0:00:11.9]} 43... b2 {[%clk 0:00:03.8]} 44.
Ne5+ {[%clk 0:00:12.2]} 44... Kh6 {[%clk 0:00:03.9]} 45. Rb6 {[%clk 0:00:11.2]}
45... Rc8 {[%clk 0:00:03.6]} 46. Rxb2 {[%clk 0:00:09]} 46... Rxc7 {[%clk
0:00:04]} 47. Kh2 {[%clk 0:00:09.1]} 47... Rg7 {[%clk 0:00:02.8]} 48. Ng4+
{[%clk 0:00:08.8]} 48... Kh5 {[%clk 0:00:02.5]} 49. Qd1 {[%clk 0:00:07.5]} 49...
Kg6 {[%clk 0:00:02.5]} 50. Ne5+ {[%clk 0:00:07.2]} 50... Kh6 {[%clk 0:00:02.9]}
51. Ng4+ {[%clk 0:00:07.7]} 51... Kh7 {[%clk 0:00:02.9]} 52. Rb6 {[%clk
0:00:08.2]} 52... Qe4 {[%clk 0:00:02.8]} 53. Qb1 {[%clk 0:00:07.5]} 53... Nf5
{[%clk 0:00:02]} 54. Qxe4 {[%clk 0:00:06.4]} 54... dxe4 {[%clk 0:00:02.9]} 55.
Nf6+ {[%clk 0:00:06.3]} 55... Kg6 {[%clk 0:00:03]} 56. Nxe4 {[%clk 0:00:06.9]}
56... Nxe3 {[%clk 0:00:02.9]} 57. Rxe6+ {[%clk 0:00:06.1]} 57... Kf5 {[%clk
0:00:03.3]} 58. Re5+ {[%clk 0:00:06.6]} 58... Kxf4 {[%clk 0:00:04]} 59. Nf6
{[%clk 0:00:05.9]} 59... Rxg2+ {[%clk 0:00:03.9]} 60. Kh1 {[%clk 0:00:06.6]}
60... Ra2 {[%clk 0:00:03.6]} 61. Nd5+ {[%clk 0:00:06.1]} 61... Nxd5 {[%clk
0:00:03.6]} 62. Rxd5 {[%clk 0:00:06.8]} 62... Kg3 {[%clk 0:00:04.3]} 63. Rg5+
{[%clk 0:00:05.8]} 63... Kxh3 {[%clk 0:00:04.8]} 64. Kg1 {[%clk 0:00:04.6]}
64... Rd2 {[%clk 0:00:04.9]} 65. d5 {[%clk 0:00:04.3]} 65... Rd4 {[%clk
0:00:04.1]} 66. Kf2 {[%clk 0:00:03.9]} 66... Kh2 {[%clk 0:00:04.5]} 67. Rh5
{[%clk 0:00:03.5]} 67... h3 {[%clk 0:00:04.7]} 68. Ke3 {[%clk 0:00:03.7]} 68...
Rd1 {[%clk 0:00:05.2]} 69. Ke4 {[%clk 0:00:04]} 69... Kg3 {[%clk 0:00:06]} 70.
Ke5 {[%clk 0:00:04.1]} 70... Re1+ {[%clk 0:00:06.6]} 71. Kf6 {[%clk 0:00:03.8]}
71... Rd1 {[%clk 0:00:06.3]} 72. Ke6 {[%clk 0:00:03.4]} 72... Rd4 {[%clk
0:00:07]} 73. d6 {[%clk 0:00:03.2]} 73... Re4+ {[%clk 0:00:07.5]} 74. Kf7 {[%clk
0:00:02.4]} 74... Rf4+ {[%clk 0:00:07.9]} 75. Ke6 {[%clk 0:00:02.1]} 75... Re4+
{[%clk 0:00:07.8]} 76. Kf7 {[%clk 0:00:01.7]} 76... h2 {[%clk 0:00:08.5]} 0-1